Workbook

Sheet GoodsConfig
A1: ID[csknu] | B1: type[csn] | C1: name[ct] | D1: icon[ct] | E1: quality[cn] | F1: stacking[cn] | G1: tips[ct] | H1: award[csn] | I1: born[can]
A2: ID区间(10w-20w) | B2: 道具类型 | C2: 道具名称 | D2: 道具图标 | E2: 道具品质颜色 | F2: 是否可堆叠 | G2: 描述 | H2: 奖励库 | I2: 获取途径
A3: 100001 | B3: 1 | C3: t2200 | D3: dz100001 | E3: 2 | F3: 0 | G3: t2400 | H3: 0 | I3: 3001^15^53 | J3: 金币 | K3: 获取途径
A4: 110001 | B4: 2 | C4: t2201 | D4: dz110001 | E4: 2 | F4: 0 | G4: t2401 | H4: 0 | I4: 22 | J4: 体力 | L4: 12=天赋
A5: 110002 | B5: 5 | C5: t2202 | D5: dz110002 | E5: 3 | F5: 0 | G5: t2402 | H5: 0 | I5: 0 | J5: 能量点 | L5: 13=关卡
A6: 110003 | B6: 1 | C6: t2203 | D6: dz110003 | E6: 3 | F6: 0 | G6: t2403 | H6: 0 | I6: 15 | J6: 活跃度 | L6: 15=任务
A7: 110004 | B7: 1 | C7: t2204 | D7: dz110003 | E7: 3 | F7: 0 | G7: t2404 | H7: 0 | I7: 15 | J7: 周积分 | L7: 18=签到
A8: 110005 | B8: 1 | C8: t2205 | D8: dz110005 | E8: 3 | F8: 0 | G8: t2405 | H8: 0 | I8: 46 | J8: 遗迹积分 | L8: 20=抽卡
A9: 110006 | B9: 1 | C9: t2206 | D9: dz110006 | E9: 4 | F9: 0 | G9: t2406 | H9: 0 | I9: 46 | J9: 遗迹币 | L9: 22=建筑
A10: 110007 | B10: 4 | C10: t2207 | D10: dz110007 | E10: 5 | F10: 0 | G10: t2407 | H10: 0 | I10: 45 | J10: 英雄魂石 | L10: 21=英雄/卡牌
A11: 110008 | B11: 4 | C11: t2208 | D11: dz110008 | E11: 5 | F11: 0 | G11: t2408 | H11: 0 | I11: 45 | J11: 装备符石 | L11: 32=装备
A12: 110009 | B12: 4 | C12: t2209 | D12: dz110009 | E12: 4 | F12: 0 | G12: t2409 | H12: 0 | I12: 45^1002 | J12: 锻造锤
A13: 130001 | B13: 3 | C13: t2210 | D13: dz130001 | E13: 4 | F13: 0 | G13: t2410 | H13: 0 | I13: 2009 | J13: 钻石 | L13: 38=战令
A14: 130002 | B14: 3 | C14: t2282 | D14: dz130002 | E14: 3 | F14: 0 | G14: t2482 | H14: 0 | I14: 2015^2005 | J14: 魔法结晶 | L14: 45=商店
A15: 130003 | B15: 3 | C15: t2283 | D15: dz110005 | E15: 4 | F15: 0 | G15: t2483 | H15: 10050 | I15: 0 | J15: 能量罐 | K15: 1-3 | L15: 46=遗迹爬塔
A16: 130004 | B16: 3 | C16: t2284 | D16: dz110006 | E16: 4 | F16: 0 | G16: t2484 | H16: 10051 | I16: 0 | J16: 能量罐 | K16: 1-5 | L16: 52=祭坛
A17: 130005 | B17: 3 | C17: t2285 | D17: dz110006 | E17: 4 | F17: 0 | G17: t2485 | H17: 10052 | I17: 0 | J17: 能量罐 | K17: 1-8 | L17: 53=日常副本
A18: 140001 | B18: 4 | C18: t2211 | D18: dz140001 | E18: 2 | F18: 0 | G18: t2411 | H18: 0 | I18: 22 | J18: 铁矿 | L18: 2002=每日商店
A19: 140002 | B19: 4 | C19: t2212 | D19: dz140002 | E19: 2 | F19: 0 | G19: t2412 | H19: 0 | I19: 22 | J19: 木材 | L19: 2005=礼包商店
A20: 140003 | B20: 4 | C20: t2213 | D20: dz140003 | E20: 2 | F20: 0 | G20: t2413 | H20: 0 | I20: 13^15 | J20: 队伍经验 | L20: 2009=钻石商店（充值）
A21: 140004 | B21: 4 | C21: t2214 | D21: dz140004 | E21: 3 | F21: 0 | G21: t2414 | H21: 0 | I21: 13^15^53 | J21: 经验石 | L21: 2001=精英关卡
A22: 140005 | B22: 4 | C22: t2215 | D22: dz140005 | E22: 3 | F22: 0 | G22: t2415 | H22: 0 | I22: 15^53^45 | J22: 技能书 | L22: 2004=装备锻造
A23: 140006 | B23: 4 | C23: t2216 | D23: dz140006 | E23: 4 | F23: 0 | G23: t2416 | H23: 0 | I23: 2001^2005 | J23: 天赋石 | L23: 2011=特权卡
A24: 140007 | B24: 4 | C24: t2217 | D24: dz140007 | E24: 2 | F24: 0 | G24: t2417 | H24: 0 | I24: 13^2002 | J24: 武器卷轴 | L24: 3000=体力购买
A25: 140008 | B25: 4 | C25: t2218 | D25: dz140008 | E25: 2 | F25: 0 | G25: t2418 | H25: 0 | I25: 13^2002 | J25: 首饰卷轴 | L25: 3001=金币购买
A26: 140009 | B26: 4 | C26: t2219 | D26: dz140009 | E26: 2 | F26: 0 | G26: t2419 | H26: 0 | I26: 13^2002 | J26: 护腕卷轴 | L26: 1002=活动
A27: 140010 | B27: 4 | C27: t2220 | D27: dz140010 | E27: 2 | F27: 0 | G27: t2420 | H27: 0 | I27: 13^2002 | J27: 护甲卷轴
A28: 140011 | B28: 4 | C28: t2221 | D28: dz140011 | E28: 2 | F28: 0 | G28: t2421 | H28: 0 | I28: 13^2002 | J28: 腰带卷轴
A29: 140012 | B29: 4 | C29: t2222 | D29: dz140012 | E29: 2 | F29: 0 | G29: t2422 | H29: 0 | I29: 13^2002 | J29: 鞋子卷轴
A30: 140013 | B30: 6 | C30: t2223 | D30: dz140013 | E30: 4 | F30: 1 | G30: t2423 | H30: 0 | I30: 1002 | J30: 精英英雄
A31: 140014 | B31: 6 | C31: t2224 | D31: dz140014 | E31: 5 | F31: 1 | G31: t2424 | H31: 0 | I31: 1002 | J31: 神话英雄
A32: 140015 | B32: 6 | C32: t2225 | D32: dz140015 | E32: 6 | F32: 1 | G32: t2425 | H32: 0 | I32: 1002 | J32: 传说英雄
A33: 140016 | B33: 7 | C33: t2226 | D33: dz140016 | E33: 4 | F33: 1 | G33: t2426 | H33: 0 | I33: 1002 | J33: 武器稀有配件
A34: 140017 | B34: 7 | C34: t2227 | D34: dz140017 | E34: 4 | F34: 1 | G34: t2427 | H34: 0 | I34: 1002 | J34: 首饰稀有配件
A35: 140018 | B35: 7 | C35: t2228 | D35: dz140018 | E35: 4 | F35: 1 | G35: t2428 | H35: 0 | I35: 1002 | J35: 护腕稀有配件
A36: 140019 | B36: 7 | C36: t2229 | D36: dz140019 | E36: 4 | F36: 1 | G36: t2429 | H36: 0 | I36: 1002 | J36: 护甲稀有配件
A37: 140020 | B37: 7 | C37: t2230 | D37: dz140020 | E37: 4 | F37: 1 | G37: t2430 | H37: 0 | I37: 1002 | J37: 腰带稀有配件
A38: 140021 | B38: 7 | C38: t2231 | D38: dz140021 | E38: 4 | F38: 1 | G38: t2431 | H38: 0 | I38: 1002 | J38: 鞋子稀有配件
A39: 140022 | B39: 7 | C39: t2232 | D39: dz140022 | E39: 5 | F39: 1 | G39: t2432 | H39: 0 | I39: 1002 | J39: 武器传说配件
A40: 140023 | B40: 7 | C40: t2233 | D40: dz140023 | E40: 5 | F40: 1 | G40: t2433 | H40: 0 | I40: 1002 | J40: 首饰传说配件
A41: 140024 | B41: 7 | C41: t2234 | D41: dz140024 | E41: 5 | F41: 1 | G41: t2434 | H41: 0 | I41: 1002 | J41: 护腕传说配件
A42: 140025 | B42: 7 | C42: t2235 | D42: dz140025 | E42: 5 | F42: 1 | G42: t2435 | H42: 0 | I42: 1002 | J42: 护甲传说配件
A43: 140026 | B43: 7 | C43: t2236 | D43: dz140026 | E43: 5 | F43: 1 | G43: t2436 | H43: 0 | I43: 1002 | J43: 腰带传说配件
A44: 140027 | B44: 7 | C44: t2237 | D44: dz140027 | E44: 5 | F44: 1 | G44: t2437 | H44: 0 | I44: 1002 | J44: 鞋子传说配件
A45: 140028 | B45: 7 | C45: t2238 | D45: dz140028 | E45: 6 | F45: 1 | G45: t2438 | H45: 0 | I45: 1002 | J45: 武器神话配件
A46: 140029 | B46: 7 | C46: t2239 | D46: dz140029 | E46: 6 | F46: 1 | G46: t2439 | H46: 0 | I46: 1002 | J46: 首饰神话配件
A47: 140030 | B47: 7 | C47: t2240 | D47: dz140030 | E47: 6 | F47: 1 | G47: t2440 | H47: 0 | I47: 1002 | J47: 护腕神话配件
A48: 140031 | B48: 7 | C48: t2241 | D48: dz140031 | E48: 6 | F48: 1 | G48: t2441 | H48: 0 | I48: 1002 | J48: 护甲神话配件
A49: 140032 | B49: 7 | C49: t2242 | D49: dz140032 | E49: 6 | F49: 1 | G49: t2442 | H49: 0 | I49: 1002 | J49: 腰带神话配件
A50: 140033 | B50: 7 | C50: t2243 | D50: dz140033 | E50: 6 | F50: 1 | G50: t2443 | H50: 0 | I50: 1002 | J50: 鞋子神话配件
A51: 140050 | B51: 4 | C51: t2244 | D51: dz140050 | E51: 3 | F51: 0 | G51: t2444 | H51: 0 | I51: 45^1002 | J51: 召唤卷
A52: 140051 | B52: 4 | C52: t2245 | D52: dz140051 | E52: 4 | F52: 0 | G52: t2445 | H52: 0 | I52: 45^1002 | J52: 高级召唤卷
A53: 140052 | B53: 8 | C53: t2246 | D53: dz140054 | E53: 2 | F53: 0 | G53: t2446 | H53: 30001 | I53: 1002 | J53: 卷轴随机箱
A54: 140053 | B54: 8 | C54: t2247 | D54: dz140053 | E54: 1 | F54: 0 | G54: t2447 | H54: 30002 | I54: 46 | J54: 普通装备箱
A55: 140054 | B55: 8 | C55: t2248 | D55: dz140054 | E55: 2 | F55: 0 | G55: t2448 | H55: 30003 | I55: 46 | J55: 优秀装备箱
A56: 140055 | B56: 8 | C56: t2249 | D56: dz140055 | E56: 3 | F56: 0 | G56: t2449 | H56: 30004 | I56: 46 | J56: 精良装备箱
A57: 140056 | B57: 8 | C57: t2250 | D57: dz140056 | E57: 4 | F57: 0 | G57: t2450 | H57: 30005 | I57: 46 | J57: 稀有装备箱
A58: 140057 | B58: 8 | C58: t2251 | D58: dz140057 | E58: 5 | F58: 0 | G58: t2451 | H58: 30006 | I58: 46 | J58: 传说装备箱
A59: 140058 | B59: 8 | C59: t2252 | D59: dz140058 | E59: 6 | F59: 0 | G59: t2452 | H59: 30007 | I59: 46 | J59: 神话装备箱
A60: 140059 | B60: 9 | C60: t2253 | D60: dz140059 | E60: 4 | F60: 0 | G60: t2453 | H60: 30014 | I60: 45^1002 | J60: 碎片选择袋
A61: 140060 | B61: 8 | C61: t2254 | D61: dz140053 | E61: 1 | F61: 0 | G61: t2454 | H61: 30008 | I61: 1002 | J61: 普通英雄箱
A62: 140061 | B62: 8 | C62: t2255 | D62: dz140054 | E62: 2 | F62: 0 | G62: t2455 | H62: 30009 | I62: 1002 | J62: 优秀英雄箱
A63: 140062 | B63: 8 | C63: t2256 | D63: dz140055 | E63: 3 | F63: 0 | G63: t2456 | H63: 30010 | I63: 1002 | J63: 稀有英雄箱
A64: 140063 | B64: 8 | C64: t2257 | D64: dz140056 | E64: 4 | F64: 0 | G64: t2457 | H64: 30011 | I64: 1002 | J64: 精英英雄箱
A65: 140064 | B65: 8 | C65: t2258 | D65: dz140057 | E65: 5 | F65: 0 | G65: t2458 | H65: 30012 | I65: 1002 | J65: 传说英雄箱
A66: 140065 | B66: 8 | C66: t2259 | D66: dz140058 | E66: 6 | F66: 0 | G66: t2459 | H66: 30013 | I66: 1002 | J66: 神话英雄箱
A67: 140100 | B67: 9 | C67: t2260 | D67: dz140055 | E67: 3 | F67: 0 | G67: t2460 | H67: 30040 | I67: 46^1002 | J67: 精良装备选择箱
A68: 140101 | B68: 9 | C68: t2261 | D68: dz140056 | E68: 4 | F68: 0 | G68: t2461 | H68: 30041 | I68: 46^1002 | J68: 稀有装备选择箱
A69: 140102 | B69: 9 | C69: t2262 | D69: dz140057 | E69: 5 | F69: 0 | G69: t2462 | H69: 30042 | I69: 46^1002 | J69: 传说装备选择箱
A70: 140200 | B70: 9 | C70: t2263 | D70: dz140056 | E70: 4 | F70: 0 | G70: t2463 | H70: 30043 | I70: 1002 | J70: 稀有配件任选箱
A71: 140201 | B71: 9 | C71: t2264 | D71: dz140057 | E71: 5 | F71: 0 | G71: t2464 | H71: 30044 | I71: 1002 | J71: 传说配件任选箱
A72: 140202 | B72: 9 | C72: t2265 | D72: dz140058 | E72: 6 | F72: 0 | G72: t2465 | H72: 30045 | I72: 1002 | J72: 神话配件任选箱
A73: 140501 | B73: 8 | C73: t2266 | D73: dz140501 | E73: 1 | F73: 0 | G73: t2466 | H73: 30015 | I73: 20 | J73: 少量铁矿石
A74: 140502 | B74: 8 | C74: t2267 | D74: dz140502 | E74: 2 | F74: 0 | G74: t2467 | H74: 30016 | I74: 20 | J74: 小堆铁矿石
A75: 140503 | B75: 8 | C75: t2268 | D75: dz140503 | E75: 3 | F75: 0 | G75: t2468 | H75: 30017 | I75: 20 | J75: 中堆铁矿石
A76: 140504 | B76: 8 | C76: t2269 | D76: dz140504 | E76: 4 | F76: 0 | G76: t2469 | H76: 30018 | I76: 20 | J76: 大堆铁矿石
A77: 140601 | B77: 8 | C77: t2270 | D77: dz140601 | E77: 1 | F77: 0 | G77: t2470 | H77: 30019 | I77: 20 | J77: 少量木材
A78: 140602 | B78: 8 | C78: t2271 | D78: dz140602 | E78: 2 | F78: 0 | G78: t2471 | H78: 30020 | I78: 20 | J78: 小堆木材
A79: 140603 | B79: 8 | C79: t2272 | D79: dz140603 | E79: 3 | F79: 0 | G79: t2472 | H79: 30021 | I79: 20 | J79: 中堆木材
A80: 140604 | B80: 8 | C80: t2273 | D80: dz140604 | E80: 4 | F80: 0 | G80: t2473 | H80: 30022 | I80: 20 | J80: 大堆木材
A81: 140701 | B81: 8 | C81: t2274 | D81: dz140701 | E81: 1 | F81: 0 | G81: t2474 | H81: 30023 | I81: 20 | J81: 少量经验石
A82: 140702 | B82: 8 | C82: t2275 | D82: dz140702 | E82: 2 | F82: 0 | G82: t2475 | H82: 30024 | I82: 20 | J82: 小堆经验石
A83: 140703 | B83: 8 | C83: t2276 | D83: dz140703 | E83: 3 | F83: 0 | G83: t2476 | H83: 30025 | I83: 20 | J83: 中堆经验石
A84: 140704 | B84: 8 | C84: t2277 | D84: dz140704 | E84: 4 | F84: 0 | G84: t2477 | H84: 30026 | I84: 20 | J84: 大堆经验石
A85: 100002 | B85: 8 | C85: t2278 | D85: dz100002 | E85: 1 | F85: 0 | G85: t2478 | H85: 30027 | I85: 20 | J85: 小袋金币
A86: 100003 | B86: 8 | C86: t2279 | D86: dz100003 | E86: 2 | F86: 0 | G86: t2479 | H86: 30028 | I86: 20 | J86: 中袋金币
A87: 100004 | B87: 8 | C87: t2280 | D87: dz100004 | E87: 3 | F87: 0 | G87: t2480 | H87: 30029 | I87: 20 | J87: 大袋金币
A88: 100005 | B88: 8 | C88: t2281 | D88: dz100005 | E88: 4 | F88: 0 | G88: t2481 | H88: 30030 | I88: 20 | J88: 一箱金币

Sheet Sheet2
C2: 普通/白 | D2: 优秀/绿 | E2: 精良/蓝 | F2: 稀有/紫 | G2: 传说/橙 | H2: 神话/红 | O2: ^
B3: 普通装备箱 | C3: 210101 | D3: =C3+1 -> 210102 | E3: =D3+1 -> 210103 | F3: 210104 | G3: =F3+3 -> 210107 | H3: =G3+4 -> 210111 | I3: 1 | J3: 10000 | M3: 精良装备选择箱 | O3: =E3&$O$2&E4&$O$2&E5&$O$2&E6&$O$2&E7&$O$2&E8&$O$2&E9&$O$2&E10&$O$2&E11&$O$2&E12&$O$2&E13&$O$2&E14&$O$2&E15&$O$2&E16&$O$2&E17&$O$2&E18&$O$2&E19&$O$2&E20&$O$2&E21&$O$2&E22&$O$2&E23&$O$2&E24&$O$2&E25&$O$2&E26&$O$2&E27&$O$2&E28&$O$2&E29&$O$2&E30&$O$2&E31&$O$2&E32&$O$2&E33&$O$2&E34&$O$2&E35&$O$2&E36&$O$2&E37&$O$2&E38&$O$2&E39&$O$2&E40&$O$2&E41&$O$2&E42 -> 210103^210203^210303^210403^210503^210603^210703^210803^210903^211003^220103^220203^220303^220403^220503^220603^230103^230203^230303^230403^230503^230603^240103^240203^240303^240403^240503^240603^250103^250203^250303^250403^250503^250603^260103^260203^260303^260403^260503^260603 | P3: =F3&$O$2&F4&$O$2&F5&$O$2&F6&$O$2&F7&$O$2&F8&$O$2&F9&$O$2&F10&$O$2&F11&$O$2&F12&$O$2&F13&$O$2&F14&$O$2&F15&$O$2&F16&$O$2&F17&$O$2&F18&$O$2&F19&$O$2&F20&$O$2&F21&$O$2&F22&$O$2&F23&$O$2&F24&$O$2&F25&$O$2&F26&$O$2&F27&$O$2&F28&$O$2&F29&$O$2&F30&$O$2&F31&$O$2&F32&$O$2&F33&$O$2&F34&$O$2&F35&$O$2&F36&$O$2&F37&$O$2&F38&$O$2&F39&$O$2&F40&$O$2&F41&$O$2&F42 -> 210104^210204^210304^210404^210504^210604^210704^210804^210904^211004^220104^220204^220304^220404^220504^220604^230104^230204^230304^230404^230504^230604^240104^240204^240304^240404^240504^240604^250104^250204^250304^250404^250504^250604^260104^260204^260304^260404^260504^260604 | Q3: 210107^210207^210307^210407^210507^210607^210707^210807^210907^211007^220107^220207^220307^220407^220507^220607^230107^230207^230307^230407^230507^230607^240107^240207^240307^240407^240507^240607^250107^250207^250307^250407^250507^250607^260107^260207^260307^260407^260507^260607 | R3: 210111^210211^210311^210411^210511^210611^210711^210811^210911^211011^220111^220211^220311^220411^220511^220611^230111^230211^230311^230411^230511^230611^240111^240211^240311^240411^240511^240611^250111^250211^250311^250411^250511^250611^260111^260211^260311^260411^260511^260611 | S3: 1^1^1^1^1^1^1^1^1^1^1^1^1^1^1^1^1^1^1^1^1^1^1^1^1^1^1^1^1^1^1^1^1^1^1^1^1^1^1^1 | T3: 10000^10000^10000^10000^10000^10000^10000^10000^10000^10000^10000^10000^10000^10000^10000^10000^10000^10000^10000^10000^10000^10000^10000^10000^10000^10000^10000^10000^10000^10000^10000^10000^10000^10000^10000^10000^10000^10000^10000^10000
B4: 优秀装备箱 | C4: 210201 | D4: =C4+1 -> 210202 | E4: 210203 | F4: 210204 | G4: =F4+3 -> 210207 | H4: =G4+4 -> 210211 | I4: 1 | J4: 10000 | M4: 稀有装备选择箱
B5: 精良装备箱 | C5: 210301 | D5: =C5+1 -> 210302 | E5: 210303 | F5: 210304 | G5: 210307 | H5: 210311 | I5: 1 | J5: 10000 | M5: 传说装备选择箱
B6: 稀有装备箱 | C6: 210401 | D6: =C6+1 -> 210402 | E6: 210403 | F6: 210404 | G6: 210407 | H6: 210411 | I6: 1 | J6: 10000
B7: 传说装备箱 | C7: 210501 | D7: =C7+1 -> 210502 | E7: 210503 | F7: 210504 | G7: 210507 | H7: 210511 | I7: 1 | J7: 10000
B8: 神话装备箱 | C8: 210601 | D8: =C8+1 -> 210602 | E8: 210603 | F8: 210604 | G8: 210607 | H8: 210611 | I8: 1 | J8: 10000
C9: 210701 | D9: =C9+1 -> 210702 | E9: 210703 | F9: 210704 | G9: 210707 | H9: 210711 | I9: 1 | J9: 10000
C10: 210801 | D10: =C10+1 -> 210802 | E10: 210803 | F10: 210804 | G10: 210807 | H10: 210811 | I10: 1 | J10: 10000
C11: 210901 | D11: =C11+1 -> 210902 | E11: 210903 | F11: 210904 | G11: 210907 | H11: 210911 | I11: 1 | J11: 10000
C12: 211001 | D12: =C12+1 -> 211002 | E12: 211003 | F12: 211004 | G12: 211007 | H12: 211011 | I12: 1 | J12: 10000
C13: 220101 | D13: =C13+1 -> 220102 | E13: 220103 | F13: 220104 | G13: 220107 | H13: 220111 | I13: 1 | J13: 10000
C14: 220201 | D14: =C14+1 -> 220202 | E14: 220203 | F14: 220204 | G14: 220207 | H14: 220211 | I14: 1 | J14: 10000
B15: 碎片选择袋 | C15: 220301 | D15: =C15+1 -> 220302 | E15: 220303 | F15: 220304 | G15: 220307 | H15: 220311 | I15: 1 | J15: 10000
B16: 普通英雄箱 | C16: 220401 | D16: =C16+1 -> 220402 | E16: 220403 | F16: 220404 | G16: 220407 | H16: 220411 | I16: 1 | J16: 10000
B17: 优秀英雄箱 | C17: 220501 | D17: =C17+1 -> 220502 | E17: 220503 | F17: 220504 | G17: 220507 | H17: 220511 | I17: 1 | J17: 10000
B18: 稀有英雄箱 | C18: 220601 | D18: =C18+1 -> 220602 | E18: 220603 | F18: 220604 | G18: 220607 | H18: 220611 | I18: 1 | J18: 10000
B19: 精英英雄箱 | C19: 230101 | D19: =C19+1 -> 230102 | E19: 230103 | F19: 230104 | G19: 230107 | H19: 230111 | I19: 1 | J19: 10000
B20: 传说英雄箱 | C20: 230201 | D20: =C20+1 -> 230202 | E20: 230203 | F20: 230204 | G20: 230207 | H20: 230211 | I20: 1 | J20: 10000
B21: 神话英雄箱 | C21: 230301 | D21: =C21+1 -> 230302 | E21: 230303 | F21: 230304 | G21: 230307 | H21: 230311 | I21: 1 | J21: 10000
C22: 230401 | D22: =C22+1 -> 230402 | E22: 230403 | F22: 230404 | G22: 230407 | H22: 230411 | I22: 1 | J22: 10000
C23: 230501 | D23: =C23+1 -> 230502 | E23: 230503 | F23: 230504 | G23: 230507 | H23: 230511 | I23: 1 | J23: 10000
C24: 230601 | D24: =C24+1 -> 230602 | E24: 230603 | F24: 230604 | G24: 230607 | H24: 230611 | I24: 1 | J24: 10000
C25: 240101 | D25: =C25+1 -> 240102 | E25: 240103 | F25: 240104 | G25: 240107 | H25: 240111 | I25: 1 | J25: 10000
C26: 240201 | D26: =C26+1 -> 240202 | E26: 240203 | F26: 240204 | G26: 240207 | H26: 240211 | I26: 1 | J26: 10000
C27: 240301 | D27: =C27+1 -> 240302 | E27: 240303 | F27: 240304 | G27: 240307 | H27: 240311 | I27: 1 | J27: 10000
C28: 240401 | D28: =C28+1 -> 240402 | E28: 240403 | F28: 240404 | G28: 240407 | H28: 240411 | I28: 1 | J28: 10000
C29: 240501 | D29: =C29+1 -> 240502 | E29: 240503 | F29: 240504 | G29: 240507 | H29: 240511 | I29: 1 | J29: 10000
C30: 240601 | D30: =C30+1 -> 240602 | E30: 240603 | F30: 240604 | G30: 240607 | H30: 240611 | I30: 1 | J30: 10000
C31: 250101 | D31: =C31+1 -> 250102 | E31: 250103 | F31: 250104 | G31: 250107 | H31: 250111 | I31: 1 | J31: 10000
C32: 250201 | D32: =C32+1 -> 250202 | E32: 250203 | F32: 250204 | G32: 250207 | H32: 250211 | I32: 1 | J32: 10000
C33: 250301 | D33: =C33+1 -> 250302 | E33: 250303 | F33: 250304 | G33: 250307 | H33: 250311 | I33: 1 | J33: 10000
C34: 250401 | D34: =C34+1 -> 250402 | E34: 250403 | F34: 250404 | G34: 250407 | H34: 250411 | I34: 1 | J34: 10000
C35: 250501 | D35: =C35+1 -> 250502 | E35: 250503 | F35: 250504 | G35: 250507 | H35: 250511 | I35: 1 | J35: 10000
C36: 250601 | D36: =C36+1 -> 250602 | E36: 250603 | F36: 250604 | G36: 250607 | H36: 250611 | I36: 1 | J36: 10000
C37: 260101 | D37: =C37+1 -> 260102 | E37: 260103 | F37: 260104 | G37: 260107 | H37: 260111 | I37: 1 | J37: 10000
C38: 260201 | D38: =C38+1 -> 260202 | E38: 260203 | F38: 260204 | G38: 260207 | H38: 260211 | I38: 1 | J38: 10000
C39: 260301 | D39: =C39+1 -> 260302 | E39: 260303 | F39: 260304 | G39: 260307 | H39: 260311 | I39: 1 | J39: 10000
C40: 260401 | D40: =C40+1 -> 260402 | E40: 260403 | F40: 260404 | G40: 260407 | H40: 260411 | I40: 1 | J40: 10000
C41: 260501 | D41: =C41+1 -> 260502 | E41: 260503 | F41: 260504 | G41: 260507 | H41: 260511 | I41: 1 | J41: 10000
C42: 260601 | D42: =C42+1 -> 260602 | E42: 260603 | F42: 260604 | G42: 260607 | H42: 260611 | I42: 1 | J42: 10000

Sheet Sheet3
I2: ^
B3: 140016 | C3: 7 | D3: 武器稀有配件 | G3: 稀有配件任选箱 | I3: =B3&$I$2&B4&$I$2&B5&$I$2&B6&$I$2&B7&$I$2&B8 -> 140016^140017^140018^140019^140020^140021
B4: 140017 | C4: 7 | D4: 首饰稀有配件 | G4: 传说配件任选箱 | I4: =B9&$I$2&B10&$I$2&B11&$I$2&B12&$I$2&B13&$I$2&B14 -> 140022^140023^140024^140025^140026^140027
B5: 140018 | C5: 7 | D5: 护腕稀有配件 | G5: 神话配件任选箱 | I5: =B15&$I$2&B16&$I$2&B17&$I$2&B18&$I$2&B19&$I$2&B20 -> 140028^140029^140030^140031^140032^140033
B6: 140019 | C6: 7 | D6: 护甲稀有配件
B7: 140020 | C7: 7 | D7: 腰带稀有配件
B8: 140021 | C8: 7 | D8: 鞋子稀有配件
B9: 140022 | C9: 7 | D9: 武器传说配件
B10: 140023 | C10: 7 | D10: 首饰传说配件
B11: 140024 | C11: 7 | D11: 护腕传说配件
B12: 140025 | C12: 7 | D12: 护甲传说配件
B13: 140026 | C13: 7 | D13: 腰带传说配件
B14: 140027 | C14: 7 | D14: 鞋子传说配件
B15: 140028 | C15: 7 | D15: 武器神话配件
B16: 140029 | C16: 7 | D16: 首饰神话配件
B17: 140030 | C17: 7 | D17: 护腕神话配件
B18: 140031 | C18: 7 | D18: 护甲神话配件
B19: 140032 | C19: 7 | D19: 腰带神话配件
B20: 140033 | C20: 7 | D20: 鞋子神话配件
